bitfinex/quotes_ETHUSD_20250821
["timestamp","ask_amount","ask_price","bid_price","bid_amount"]
[1755794029525,4.638349,4256.5,4256.2,0.21942874]
[1755794029723,4.638349,4256.5,4256.3,0.21942874]
[1755794029925,4.638349,4256.5,4255.6,0.4307]
[1755794029926,0.2973,4256.4,4255.6,0.4307]
[1755794030131,4.638349,4256.5,4255.6,0.4307]
[1755794030132,4.638349,4256.5,4255.7,0.21961651]
[1755794030330,4.638349,4256.5,4255.8,0.21961651]
[1755794030619,4.638349,4256.5,4255.9,0.21961651]
[1755794030820,0.39532321,4256.4,4256.0,0.21961651]
[1755794031131,0.611349,4256.5,4256.1,0.21961651]
[1755794031330,0.611349,4256.5,4256.2,0.21961651]
[1755794031539,0.611349,4256.5,4255.0,2.2387]
[1755794031540,0.2973,4256.3,4255.0,2.2387]
[1755794031851,3.0,4256.1,4255.1,0.21976742]
[1755794032064,3.0,4256.1,4255.2,0.21976742]
[1755794032065,1.19813,4256.0,4255.2,0.21976742]
[1755794032219,3.4657,4255.9,4255.3,0.21976742]
[1755794032420,0.4657,4255.8,4255.4,0.21976742]
[1755794032622,3.0,4255.6,4255.5,0.21976742]
[1755794032858,3.763,4255.6,4255.0,0.001]
[1755794033055,0.779,4255.5,4255.1,0.21988728]
[1755794033239,0.4657,4255.4,4255.2,0.21988728]
[1755794033552,0.4657,4255.4,4255.0,0.001]
[1755794033730,0.779,4255.5,4255.1,0.21989468]
[1755794033930,0.4657,4255.3,4255.2,0.21989468]
[1755794034131,1.18747,4255.3,4255.2,0.21989468]
[1755794035655,33.66,4255.2,4254.5,0.001]
[1755794035856,0.2973,4254.6,4254.5,0.001]
[1755794036154,4.3243,4254.6,4254.5,0.001]
[1755794036454,39.18243,4254.6,4254.5,0.001]
[1755794036830,40.15490681,4254.6,4254.5,0.001]
[1755794037357,39.80483742,4254.6,4254.5,0.001]
[1755794037565,39.80483742,4254.6,4254.4,0.001]
[1755794037566,3.66,4254.5,4254.4,0.001]
[1755794037725,3.66,4254.5,4252.8,0.02]
[1755794037726,17.30093138,4254.2,4252.8,0.02]
[1755794038054,56.6491692,4254.2,4252.8,0.02]
[1755794038254,3.66,4254.1,4252.8,0.02]
[1755794038460,0.2973,4252.9,4252.8,0.02]
[1755794038658,39.1323,4252.9,4252.8,0.02]
[1755794038849,39.598,4252.9,4252.8,0.02]
[1755794039038,41.96013963,4252.9,4252.8,0.02]
[1755794039428,11.96013963,4252.9,4252.8,0.02]
[1755794039926,11.96113963,4252.9,4252.8,0.02]
[1755794040124,5.1053,4252.9,4252.8,0.02]
[1755794040363,8.836,4252.9,4252.8,0.02]
[1755794040524,5.836,4252.9,4252.8,0.7513]
[1755794040729,4.028,4253.0,4252.8,0.7513]
[1755794041056,4.028,4253.0,4252.8,0.3206]
[1755794041661,3.0,4252.9,4252.8,0.02]
[1755794041874,3.2973,4252.9,4252.8,0.02]
[1755794042362,3.0,4252.9,4252.8,0.02]
[1755794042663,7.028,4252.9,4252.8,0.3206]
[1755794042964,3.0,4252.9,4252.8,0.3206]
[1755794043124,7.028,4252.9,4252.8,0.3206]
[1755794043529,7.50584923,4252.9,4252.8,0.02]
[1755794043775,3.47784923,4252.9,4252.8,0.02]
[1755794043977,7.50584923,4252.9,4252.8,0.02]
[1755794044259,7.50584923,4252.9,4252.8,0.3206]
[1755794044574,8.26884923,4252.9,4252.8,0.02]
[1755794045163,7.80314923,4252.9,4252.8,0.02]
[1755794045665,8.92884923,4252.9,4252.8,0.02]
[1755794045875,38.92884923,4252.9,4252.8,0.02]
[1755794047127,38.92884923,4252.9,4251.9,0.001]
[1755794047462,3.0,4252.0,4251.9,0.001]
[1755794047650,9.1343,4252.0,4251.9,0.001]
[1755794047828,40.2356,4252.0,4251.9,0.001]
[1755794048631,36.2076,4252.0,4251.9,0.001]
[1755794048859,10.2366,4252.0,4251.9,0.001]
[1755794049163,42.59873963,4252.0,4251.9,0.001]
[1755794049763,38.56973963,4252.0,4251.9,0.001]
[1755794050064,42.59873963,4252.0,4251.9,0.001]
[1755794051042,38.56973963,4252.0,4251.9,0.001]
[1755794051650,42.59873963,4252.0,4251.9,0.001]
[1755794052060,42.59873963,4252.0,4250.8,0.02]
[1755794052061,0.66,4251.9,4250.8,0.02]
[1755794052366,0.3145,4250.9,4250.8,0.02]
[1755794052556,34.809,4250.9,4250.8,0.02]
[1755794052864,40.2538,4250.9,4250.8,0.02]
[1755794054662,1.809,4250.9,4250.8,0.02]
[1755794054863,8.838,4250.9,4250.8,0.02]
[1755794055171,40.4776,4250.9,4250.8,0.02]
[1755794055363,40.0363,4250.9,4250.8,0.02]
[1755794055565,40.4776,4250.9,4250.8,0.02]
[1755794055867,37.1086,4250.9,4250.8,0.02]
[1755794056066,41.1386,4250.9,4250.8,0.02]
[1755794057977,0.66,4250.6,4249.9,0.001]
[1755794058266,0.9745,4250.0,4249.9,0.001]
[1755794058443,39.8145,4250.0,4249.9,0.001]
[1755794058649,40.2558,4250.0,4249.9,0.001]
[1755794058851,42.61793963,4250.0,4249.9,0.001]
[1755794060208,42.73682924,4250.0,4249.9,0.001]
[1755794060350,42.91538459,4250.0,4249.9,0.001]
[1755794060869,48.57238459,4250.0,4249.9,0.001]
[1755794061265,50.92532576,4250.0,4249.9,0.001]
[1755794061464,3.66,4249.9,4249.8,0.02]
[1755794061668,36.77793963,4249.9,4248.8,0.021]
[1755794061869,17.30093138,4248.9,4248.8,0.021]
[1755794062079,53.45643138,4248.9,4248.8,0.021]
[1755794062486,53.89773138,4248.9,4248.8,0.021]
[1755794062886,49.11093138,4248.9,4248.8,0.021]
[1755794063053,50.37851999,4248.9,4248.8,0.021]
[1755794063382,54.40951999,4248.9,4248.8,0.021]
[1755794063686,36.07758861,4248.9,4248.8,0.332]
[1755794063981,36.07758861,4248.9,4248.8,0.801]
[1755794063982,1.81,4248.9,4248.8,0.801]
[1755794064170,5.841,4248.9,4248.8,0.801]
[1755794064369,8.841,4248.9,4248.8,0.332]
[1755794064888,4.81,4248.9,4248.8,0.801]
[1755794065191,8.841,4248.9,4248.8,0.801]
[1755794065492,8.841,4248.9,4248.8,0.332]
[1755794065493,9.7251,4248.9,4248.8,0.332]
[1755794065649,33.66,4248.8,4247.8,0.489]
[1755794065963,3.0,4248.6,4248.0,0.469]
[1755794066151,0.66,4248.8,4248.5,0.311]
[1755794066152,3.66,4248.8,4248.5,0.311]
[1755794066352,3.0,4248.6,4248.5,0.311]
[1755794066550,4.031,4248.6,4248.5,0.311]
[1755794066978,3.0,4248.8,4248.5,0.78]
[1755794067174,3.0,4248.6,4248.5,0.311]
[1755794068311,4.031,4248.6,4248.5,0.311]
[1755794068482,5.00351,4248.6,4248.5,0.78]
[1755794068794,8.00351,4248.6,4248.5,0.311]
[1755794068997,3.0,4248.6,4248.5,0.78]
[1755794069201,1.81,4248.9,4248.5,0.78]
[1755794069408,4.032,4248.8,4248.6,0.469]
[1755794069609,1.81,4248.9,4248.6,0.469]
[1755794069791,1.81,4248.9,4248.3,0.001]
[1755794069792,1.81,4248.9,4248.8,0.311]
[1755794070000,9.023,4248.9,4248.8,0.311]
[1755794070396,5.657,4250.0,4248.8,0.78]
[1755794070620,0.02,4250.8,4248.9,0.469]
[1755794070621,1.811,4249.9,4248.9,0.469]
[1755794070781,4.032,4249.8,4248.9,0.469]
[1755794071113,1.811,4250.1,4248.9,0.469]
[1755794071114,4.032,4249.7,4248.9,0.469]
[1755794071329,1.811,4250.1,4249.7,0.311]
[1755794071628,4.032,4250.1,4249.7,0.311]
[1755794071778,4.032,4250.1,4249.8,0.469]
[1755794072114,4.032,4250.1,4250.0,0.311]
[1755794072410,4.032,4250.1,4250.0,0.78]
[1755794072710,4.032,4250.1,4248.5,0.001]
[1755794072711,0.02,4249.8,4248.5,0.001]
[1755794072910,0.02,4249.8,4249.7,0.311]
[1755794073120,0.02,4249.8,4249.7,0.78]
[1755794073121,4.052,4249.8,4249.7,0.78]
[1755794073789,4.052,4249.8,4249.7,0.311]
[1755794074195,4.052,4249.8,4249.7,0.78]
[1755794075719,7.052,4249.8,4249.7,0.78]
[1755794075902,7.052,4249.8,4249.7,0.311]
[1755794076103,9.5682,4249.8,4249.2,0.469]
[1755794076616,9.5682,4249.8,4248.8,0.469]
[1755794076617,3.0,4249.7,4248.8,0.469]
[1755794077714,0.50386577,4249.6,4248.8,0.469]
[1755794077936,3.0,4249.4,4248.8,0.469]
[1755794078084,3.35038658,4249.4,4248.5,0.001]
[1755794078481,0.50396228,4249.3,4248.5,0.001]
[1755794079513,3.0,4249.1,4248.5,0.001]
[1755794079705,6.34596228,4249.0,4248.5,0.001]
[1755794080016,3.50396228,4248.9,4248.5,0.001]
[1755794080313,0.50396228,4248.8,4248.5,0.001]
[1755794081217,0.3088,4248.6,4248.5,0.001]
[1755794081417,7.3408,4248.6,4248.5,0.001]
[1755794081718,7.84476228,4248.6,4248.5,0.001]
[1755794082513,8.28726228,4248.6,4248.5,0.001]
[1755794082693,9.20944813,4248.6,4248.5,0.001]
[1755794083460,54.69462829,4248.6,4248.5,0.001]
[1755794083741,53.86056437,4248.6,4248.5,0.001]
[1755794084391,54.70074489,4248.6,4248.5,0.001]
[1755794084593,55.11982421,4248.6,4248.5,0.001]
[1755794084808,57.47354072,4248.6,4248.5,0.001]
[1755794085025,6.01377282,4248.5,4248.3,0.001]
[1755794085197,8.44523603,4248.4,4248.3,0.001]
[1755794085401,38.88773603,4248.4,4248.3,0.001]
[1755794085614,37.62758677,4248.4,4248.3,0.001]
[1755794085815,41.65958677,4248.4,4248.3,0.001]
[1755794085999,41.83384322,4248.4,4248.3,0.001]
[1755794086400,37.80184322,4248.4,4248.3,0.001]
[1755794086595,42.67339211,4248.4,4248.3,0.001]
[1755794086829,41.83384322,4248.4,4248.3,0.001]
[1755794087298,37.80184322,4248.4,4248.3,0.001]
[1755794087500,38.6411532,4248.4,4248.3,0.001]
[1755794087698,38.42228766,4248.4,4248.3,0.001]
[1755794087901,42.67266114,4248.4,4248.3,0.001]
[1755794088101,38.64066114,4248.4,4248.3,0.001]
[1755794088305,42.45410314,4248.4,4248.3,0.001]
[1755794088526,42.67259033,4248.4,4248.3,0.001]
[1755794088705,41.83323559,4248.4,4248.3,0.001]
[1755794088902,42.67254557,4248.4,4248.3,0.001]
[1755794089141,38.64054557,4248.4,4248.3,0.001]
[1755794089342,41.83323559,4248.4,4248.3,0.001]
[1755794089504,41.70214555,4248.4,4248.3,0.001]
[1755794090057,37.80119512,4248.4,4248.3,0.001]
[1755794090349,41.83319512,4248.4,4248.3,0.001]
[1755794091036,41.8331034,4248.4,4248.3,0.001]
[1755794091343,37.67005383,4248.4,4248.3,0.001]
[1755794091541,42.33097111,4248.4,4248.3,0.001]
[1755794091743,42.33092019,4248.4,4248.3,0.001]
[1755794092436,37.67000291,4248.4,4248.3,0.001]
[1755794092638,41.04115836,4248.4,4248.3,0.001]
[1755794092852,36.70035836,4248.4,4248.3,0.001]
[1755794093225,40.73235836,4248.4,4248.3,0.001]
[1755794093539,40.20790191,4248.4,4248.3,0.001]
[1755794093737,40.65040191,4248.4,4248.3,0.001]
[1755794094238,39.89910191,4248.4,4248.3,0.001]
[1755794094449,5.86610191,4248.4,4248.3,0.3094]
[1755794094611,7.033,4248.4,4248.3,0.783]
[1755794094939,3.0,4248.4,4248.3,0.783]
[1755794095144,4.032,4248.4,4248.3,0.783]
[1755794095516,7.032,4248.4,4248.3,0.783]
[1755794095919,1.811,4249.0,4248.3,0.783]
[1755794096123,4.032,4248.9,4248.4,0.4736]
[1755794096336,4.032,4248.9,4248.3,0.3094]
[1755794096337,4.032,4248.9,4248.8,0.3084]
[1755794096521,7.6163,4248.9,4248.8,0.3084]
[1755794096836,3.0,4248.8,4248.5,0.4736]
[1755794097142,4.032,4248.7,4248.5,0.4736]
[1755794097346,7.032,4248.7,4248.6,0.3084]
[1755794097557,3.0,4248.7,4248.6,0.782]
[1755794097754,7.032,4248.7,4248.6,0.782]
[1755794097923,1.811,4249.0,4248.6,0.782]
[1755794098128,1.811,4249.0,4248.7,0.4736]
[1755794098444,3.0,4248.8,4248.7,0.4736]
[1755794098656,3.0,4249.7,4248.7,0.3084]
[1755794098882,3.0,4249.5,4248.7,0.782]
[1755794099031,37.59283809,4249.6,4248.7,0.782]
[1755794099032,4.032,4249.4,4248.8,0.4736]
[1755794099346,7.032,4249.4,4249.3,0.3084]
[1755794100047,3.0,4249.4,4249.3,0.3084]
[1755794100246,4.032,4249.4,4249.3,0.782]
[1755794100448,1.811,4249.6,4249.3,0.782]
[1755794100618,4.032,4249.4,4249.3,0.3084]
[1755794101144,4.032,4249.4,4249.3,0.782]
[1755794103655,4.032,4249.4,4249.3,0.3084]
[1755794103945,7.6163,4249.4,4249.3,0.782]
[1755794104151,7.032,4249.4,4249.3,0.782]
[1755794105639,3.0,4249.4,4249.3,0.782]
[1755794106234,7.031,4249.4,4249.3,0.782]
[1755794107667,3.0,4249.3,4248.3,0.001]
[1755794107847,3.0,4249.1,4248.3,0.001]
[1755794108042,3.0,4248.9,4248.3,0.001]
[1755794108378,5.842,4248.8,4248.3,0.001]
[1755794108579,0.62701,4248.7,4248.3,0.001]
[1755794108786,4.031,4248.6,4248.3,0.001]
[1755794109287,4.05511,4248.7,4248.3,0.001]
[1755794109454,4.031,4248.6,4248.3,0.001]
[1755794109849,3.62701,4248.7,4248.5,0.2902]
[1755794110052,4.574801,4248.6,4248.3,0.001]
[1755794110254,1.811,4248.8,4248.5,0.2902]
[1755794110455,7.031,4248.7,4248.5,0.2902]
[1755794110656,3.2852,4248.6,4248.3,0.001]
[1755794111179,4.031,4248.5,4248.3,0.001]
[1755794111536,0.7133,4248.4,4248.3,0.001]
[1755794111740,1.18773,4248.4,4248.3,0.001]
[1755794112134,4.18773,4248.4,4248.3,0.001]
[1755794113871,0.75963,4248.4,4248.3,0.001]
[1755794114090,4.79063,4248.4,4248.3,0.001]
[1755794114287,0.75963,4248.4,4248.3,0.001]
[1755794114455,4.79063,4248.4,4248.3,0.001]
[1755794116381,38.87873,4248.4,4248.3,0.001]
[1755794117081,37.79063,4248.4,4248.3,0.001]
[1755794117455,7.79063,4248.4,4248.3,0.001]
[1755794117762,3.75963,4248.4,4248.3,0.001]
[1755794117960,7.79063,4248.4,4248.3,0.001]
[1755794118359,7.50543,4248.4,4248.3,0.2912]
[1755794119001,3.47443,4248.4,4248.3,0.2912]
[1755794119149,7.79063,4248.4,4248.3,0.001]
[1755794119491,8.21873,4248.4,4248.3,0.001]
[1755794121385,3.75963,4248.4,4248.3,0.001]
[1755794121564,7.79063,4248.4,4248.3,0.001]
[1755794122103,4.031,4248.4,4248.3,0.7193]
[1755794122455,1.811,4248.8,4248.3,0.7193]
[1755794122714,1.811,4248.8,4248.4,0.4281]
[1755794122853,4.031,4248.7,4248.4,0.4281]
[1755794123054,4.031,4248.7,4248.6,0.2902]
[1755794123570,4.031,4248.7,4248.6,0.7183]
[1755794123758,1.811,4248.8,4248.6,0.7183]
[1755794124176,4.031,4248.7,4248.6,0.2902]
[1755794124478,4.9004,4248.7,4248.3,0.001]
[1755794124679,7.9004,4248.7,4248.3,0.001]
[1755794124887,3.0,4248.6,4248.4,0.4281]
[1755794125184,3.0,4248.4,4248.3,0.001]
[1755794125389,4.031,4248.5,4248.3,0.001]
[1755794125566,1.08953,4248.4,4248.3,0.001]
[1755794125965,1.51763,4248.4,4248.3,0.001]
[1755794126559,32.17763,4248.4,4248.3,0.001]
[1755794126780,35.17763,4248.4,4248.3,0.001]
[1755794126967,35.68222764,4248.4,4248.3,0.001]
[1755794127867,5.68222764,4248.4,4248.3,0.001]
[1755794128104,35.68222764,4248.4,4248.3,0.001]
[1755794128410,35.90114338,4248.4,4248.3,0.001]
[1755794128774,3.66,4248.3,4248.0,0.001]
[1755794129080,3.66,4247.9,4246.8,0.02]
[1755794129271,3.66,4246.7,4245.8,0.02]
[1755794129455,16.92613138,4245.9,4245.8,0.02]
[1755794129677,20.95713138,4245.9,4245.8,0.02]
[1755794130958,3.2852,4245.9,4245.8,0.02]
[1755794131286,7.031,4245.9,4245.8,0.02]
[1755794131492,4.85564837,4245.9,4245.8,0.02]
[1755794131785,8.88664837,4245.9,4245.8,0.02]
[1755794132356,4.85564837,4245.9,4245.8,0.02]
[1755794132558,8.88664837,4245.9,4245.8,0.02]
[1755794133596,4.85564837,4245.9,4245.8,0.02]
[1755794133809,3.0,4245.9,4245.8,0.7383]
[1755794133962,7.031,4245.9,4245.8,0.7383]
[1755794134465,4.031,4245.9,4245.8,0.7383]
[1755794134660,4.031,4245.9,4245.8,0.02]
[1755794134858,7.4379,4245.9,4245.8,0.02]
[1755794135060,7.8184,4245.9,4245.8,0.02]
[1755794135463,7.4379,4245.9,4245.8,0.02]
[1755794135664,3.4069,4245.9,4245.8,0.02]
[1755794135865,7.8194,4245.9,4245.8,0.02]
[1755794136088,5.4794,4245.9,4244.9,0.001]
[1755794136394,13.64093138,4245.0,4244.9,0.001]
[1755794136568,15.73813138,4245.0,4244.9,0.001]
[1755794136761,20.19823138,4245.0,4244.9,0.001]
[1755794136961,30.66,4244.9,4244.8,0.02]
[1755794137192,34.3733,4244.9,4244.8,0.02]
[1755794137389,40.76743963,4244.9,4244.8,0.02]
[1755794138061,36.73543963,4244.9,4244.8,0.02]
[1755794138264,6.39413963,4244.9,4244.8,0.02]
[1755794139091,5.36213963,4244.9,4244.8,0.02]
[1755794139265,9.39413963,4244.9,4244.8,0.02]
[1755794139467,5.663,4245.1,4244.8,0.3288]
[1755794139686,5.845,4245.0,4244.8,0.7736]
[1755794139963,1.812,4245.0,4244.9,0.4448]
[1755794140167,5.845,4245.0,4244.9,0.7536]
[1755794140563,1.812,4245.6,4244.9,0.7536]
[1755794140793,4.033,4245.7,4245.0,0.4448]
[1755794141063,1.812,4246.1,4245.6,0.3088]
[1755794141267,4.034,4246.0,4245.7,0.4448]
[1755794141586,1.812,4246.1,4245.9,0.3088]
[1755794142068,4.034,4246.0,4245.9,0.4448]
[1755794142272,4.034,4246.0,4244.8,0.02]
[1755794142472,4.034,4246.0,4245.9,0.3088]
[1755794142706,4.034,4246.0,4244.8,0.02]
[1755794142905,3.0,4245.9,4245.2,0.4448]
[1755794143074,4.035,4245.8,4245.2,0.4448]
[1755794143274,1.812,4246.1,4245.7,0.3088]
[1755794143508,0.62671177,4247.9,4245.7,0.3088]
[1755794143509,0.02,4246.8,4245.8,0.46835268]
[1755794143683,0.02,4246.8,4246.7,0.3088]
[1755794143881,3.0,4246.7,4245.8,0.4448]
[1755794144906,3.0,4246.7,4246.6,0.3088]
[1755794145106,0.2032,4246.8,4246.6,0.3088]
[1755794145275,4.037,4246.7,4246.6,0.3088]
[1755794145480,3.0,4246.6,4245.7,0.4448]
[1755794145811,1.20522,4246.6,4245.7,0.4448]
[1755794146104,1.20522,4246.6,4245.3,0.4448]
[1755794147288,0.02,4246.8,4246.5,0.3088]
[1755794147607,4.037,4246.7,4244.8,0.02]
[1755794147808,3.0,4246.6,4245.8,0.4448]
[1755794147977,1.812,4246.5,4245.3,0.4448]
[1755794148178,1.812,4246.5,4244.8,0.02]
[1755794148179,3.0,4246.3,4244.8,0.02]
[1755794148373,6.33793314,4246.2,4244.9,0.4448]
[1755794148578,3.0,4246.1,4244.9,0.4448]
[1755794149204,3.0,4245.9,4244.9,0.4448]
[1755794149617,2.2754,4246.5,4244.9,0.4448]
[1755794149822,16.64093138,4246.3,4244.8,0.02]
[1755794150126,2.29583314,4246.2,4244.8,0.02]
[1755794150286,3.0,4246.0,4244.8,0.02]
[1755794150984,4.5034,4245.9,4244.8,0.02]
[1755794151185,16.64093138,4245.8,4244.8,0.02]
[1755794151385,1.812,4245.7,4244.8,0.02]
[1755794151623,3.0,4245.5,4244.8,0.02]
[1755794151819,1.812,4245.7,4244.8,0.02]
[1755794151993,3.0,4245.5,4245.4,0.3088]
[1755794152193,3.0,4245.5,4244.9,0.4448]
[1755794152493,3.0,4245.5,4244.8,0.02]
[1755794152494,3.0,4245.5,4245.4,0.3088]
[1755794152800,3.3112,4245.5,4244.8,0.02]
[1755794153325,3.0,4245.5,4244.8,0.02]
[1755794153523,1.812,4245.7,4245.4,0.3088]
[1755794153685,3.0,4245.5,4245.4,0.3088]
[1755794153886,4.043,4245.5,4245.4,0.3088]
[1755794154287,5.2397,4245.5,4244.8,0.02]
[1755794154724,4.043,4245.5,4244.8,0.4648]
[1755794155696,1.812,4245.7,4245.4,0.3088]
[1755794155903,1.812,4245.7,4244.8,0.4648]
[1755794155904,7.041,4245.6,4245.0,0.4448]
[1755794156130,7.041,4245.6,4244.8,0.02]
[1755794156588,7.041,4245.6,4244.9,0.4448]
[1755794157384,3.0,4245.6,4244.9,0.4448]
[1755794157585,4.039,4245.5,4244.9,0.4448]
[1755794157992,4.039,4245.5,4244.8,0.02]
[1755794158187,4.039,4245.4,4244.8,0.02]
[1755794159616,1.539,4245.4,4244.8,0.02]
[1755794159821,3.0,4245.6,4244.8,0.02]
[1755794160019,4.036,4245.5,4244.8,0.02]
[1755794160191,3.0,4245.6,4244.8,0.02]
[1755794160387,0.02,4246.8,4245.4,0.3088]
[1755794160655,0.02,4246.8,4245.5,0.46835435]
[1755794160800,3.02,4246.8,4245.5,0.46835435]
[1755794161206,0.02,4246.8,4245.5,0.4448]
[1755794161407,0.02,4246.8,4245.5,0.46835435]
[1755794161714,0.02,4246.8,4246.7,0.3088]
[1755794162020,0.02,4246.8,4246.7,0.7536]
[1755794163025,0.02,4246.8,4246.7,1.08798999]
[1755794163393,0.02,4246.8,4246.7,4.10275957]
[1755794163732,0.02,4246.8,4246.7,7.10275957]
[1755794163915,0.02,4246.8,4246.7,7.07921188]
[1755794164119,0.02,4246.8,4246.7,11.11621188]
[1755794164434,0.02,4246.8,4246.7,11.23381188]
[1755794166553,0.002,4247.7,4247.6,3.01427064]
[1755794166730,0.002,4247.7,4247.6,8.69547545]
[1755794166904,0.002,4247.7,4247.6,9.23433275]
[1755794167300,0.002,4247.7,4247.6,13.26933275]
[1755794168039,0.002,4247.7,4247.6,6.88006211]
[1755794168355,0.002,4247.7,4247.6,6.31766211]
[1755794168645,0.002,4247.7,4247.6,3.75476211]
[1755794170743,0.002,4247.7,4247.6,3.31766211]
[1755794171119,0.002,4247.7,4247.6,3.75476211]
[1755794171846,0.002,4247.7,4247.6,3.31766211]
[1755794172161,0.002,4247.7,4247.3,0.4368]
[1755794172364,0.4368,4247.6,4247.3,0.4368]
[1755794172653,0.66,4247.3,4246.3,0.1176]
[1755794172857,13.64093138,4245.0,4244.5,0.4378]
[1755794173007,5.1258,4244.9,4244.5,0.001]
[1755794173415,5.5626,4244.9,4244.5,0.001]
[1755794177055,2.1258,4244.9,4244.5,0.001]
[1755794177231,2.5626,4244.9,4244.5,0.001]
[1755794178950,2.1258,4244.9,4244.5,0.001]
[1755794179475,2.5626,4244.9,4244.5,0.001]
[1755794180060,2.1258,4244.9,4244.5,0.001]
[1755794180271,3.11886,4244.9,4244.5,0.001]
[1755794180952,6.11886,4244.9,4244.5,0.001]
[1755794181251,5.5626,4244.9,4244.5,0.001]
[1755794182040,5.1258,4244.9,4244.5,0.001]
[1755794182278,9.3108,4244.9,4244.5,0.001]
[1755794182473,9.7476,4244.9,4244.5,0.001]
[1755794182887,9.8652,4244.9,4244.5,0.001]
[1755794183265,10.85172,4244.9,4244.5,0.001]
[1755794183486,6.22992,4244.9,4244.5,0.001]
[1755794183681,5.2434,4244.9,4244.5,0.001]
[1755794184509,5.2434,4244.9,4244.3,0.001]
[1755794184510,3.0,4244.8,4244.3,0.001]
[1755794184647,0.3148,4244.4,4244.3,0.001]
[1755794184849,7.5088,4244.4,4244.3,0.001]
[1755794185076,8.30336,4244.4,4244.3,0.001]
[1755794185279,4.10936,4244.4,4244.3,0.001]
[1755794185578,3.0,4244.4,4244.3,0.001]
[1755794186548,3.3148,4244.4,4244.3,0.001]
[1755794186779,3.0,4244.4,4244.3,0.001]
[1755794186947,0.002,4246.3,4244.3,0.001]
[1755794186948,4.192,4245.0,4244.3,0.7517]
[1755794187150,4.192,4245.0,4244.3,0.001]
[1755794187151,0.3148,4244.4,4244.3,0.001]
[1755794187344,2.8481,4244.9,4244.3,0.001]
[1755794187593,0.3148,4244.4,4244.3,0.001]
[1755794187793,0.4368,4244.7,4244.3,0.001]
[1755794188102,0.3148,4244.4,4244.3,0.001]
[1755794188260,1.20308,4244.4,4244.3,0.001]
[1755794188580,4.96528,4244.4,4244.3,0.001]
[1755794188786,1.811,4244.9,4244.3,0.001]
[1755794188994,1.811,4244.9,4244.3,0.7517]
[1755794189299,1.812,4245.6,4244.4,0.02356045]
[1755794189654,4.201,4245.5,4244.3,0.4381]
[1755794189848,3.0,4245.4,4244.3,0.4381]
[1755794190399,1.812,4245.6,4244.3,0.4381]
[1755794190581,4.201,4245.3,4244.3,0.001]
[1755794190887,2.03688,4245.6,4244.3,0.001]
[1755794191089,4.224,4245.2,4244.4,0.4371]
[1755794191650,2.03688,4245.6,4244.4,0.4371]
[1755794191854,3.0,4245.4,4244.4,0.4371]
[1755794192055,1.812,4245.6,4245.3,0.3136]
[1755794192298,0.02,4245.8,4245.4,0.4606549]
[1755794192977,0.02,4245.8,4245.7,0.3136]
[1755794193366,0.02,4245.8,4244.6,3.66]
[1755794193367,0.02,4245.8,4245.3,0.02355546]
[1755794193566,0.02,4245.8,4245.0,0.02355712]
[1755794193758,0.02,4245.8,4244.9,0.4371]
[1755794193954,0.02,4245.8,4244.0,0.66]
[1755794193955,0.02,4245.8,4244.4,0.4371]
[1755794194172,0.79078,4245.8,4244.5,2.03701]
[1755794194595,0.1176,4244.6,4244.5,2.03701]
[1755794194898,0.1176,4244.6,4244.5,2.35061]
[1755794195059,0.1176,4244.6,4244.5,2.78771]
[1755794195594,0.1176,4244.6,4244.5,2.35061]
[1755794195796,0.1176,4244.6,4244.5,1.812]
[1755794195991,0.1176,4244.6,4243.9,0.4371]
[1755794196367,0.1176,4244.6,4243.8,1.832]
[1755794196991,0.1176,4244.6,4244.5,0.3136]
[1755794197194,0.1176,4244.6,4244.5,0.7742599]
[1755794197493,0.1176,4244.6,4244.5,0.7507]
[1755794197888,0.02,4245.8,4244.5,0.7742599]
[1755794198090,0.1176,4244.6,4244.5,0.9971599]
[1755794198293,0.1176,4244.6,4244.5,3.6650215]
[1755794198498,0.1176,4244.8,4244.6,0.66]
[1755794198670,0.1176,4244.8,4244.7,0.9607]
[1755794198993,0.02,4245.8,4244.3,0.001]
[1755794198994,0.8754,4244.7,4244.3,0.001]
[1755794199169,0.1176,4244.4,4244.3,0.001]
[1755794200068,0.4153,4244.4,4244.3,0.001]
[1755794201370,0.63370966,4244.4,4244.3,0.001]
[1755794201888,3.0,4244.2,4243.8,0.021]
[1755794202095,0.9577,4243.9,4243.8,0.02]
[1755794202293,1.67943438,4243.9,4243.8,0.02]
[1755794202597,2.13953438,4243.9,4243.8,0.02]
[1755794202901,8.80053438,4243.9,4243.8,0.02]